fUSD/lending_fUSD_20241203
["ID","MTS","AMOUNT","RATE_DAILY","PERIOD"]
[344009936,1733191832561,-667.61691343,7.329e-05,2]
[344009937,1733191832572,-861.54308657,7.329e-05,2]
[344009938,1733191832581,-19501.79367123,7.433e-05,2]
[344009939,1733191832593,-3941.2451595,7.433e-05,2]
[344009940,1733191832605,-456.96116927,7.433e-05,2]
[344009941,1733191832615,-600.1726534,7.673e-05,2]
[344009942,1733191832624,-119.32425021,7.673e-05,2]
[344009943,1733191832636,-383.04321871,7.673e-05,2]
[344009944,1733191832645,-150.0,7.698e-05,2]
[344009945,1733191832655,-150.0,7.698e-05,2]
[344009946,1733191832664,-150.0,7.698e-05,2]
[344009947,1733191832673,-150.0,7.698e-05,2]
[344009948,1733191832683,-150.0,7.698e-05,2]
[344009949,1733191832692,-150.0,7.698e-05,2]
[344009950,1733191832704,-150.0,7.698e-05,2]
[344009951,1733191832713,-150.0,7.698e-05,2]
[344009952,1733191832723,-150.0,7.698e-05,2]
[344009953,1733191832732,-150.0,7.698e-05,2]
[344009954,1733191832742,-150.0,7.698e-05,2]
[344009955,1733191832751,-150.0,7.698e-05,2]
[344009956,1733191832760,-500.0,7.699e-05,2]
[344009957,1733191832770,-157.99781263,7.699e-05,2]
[344009958,1733191832780,-766.31,7.699e-05,2]
[344009959,1733191832790,-150.0,7.699e-05,2]
[344009960,1733191832799,-242.64897026,7.7e-05,2]
[344009961,1733191832810,-298.35102974,7.7e-05,2]
[344009962,1733191832819,-287.84897026,7.7e-05,2]
[344009975,1733191838405,-269.45915745,7.329e-05,2]
[344009976,1733191838416,-4028.99911532,7.7e-05,2]
[344009977,1733191838428,-2470.55857927,7.7e-05,2]
[344009978,1733191838440,-23031.52436496,7.7e-05,2]
[344009979,1733191838452,-2267.20858478,7.7e-05,2]
[344009980,1733191838464,-2029.999995,7.7e-05,2]
[344009981,1733191838476,-3467.681109,7.7e-05,2]
[344009982,1733191838487,-6310.87925435,7.7e-05,2]
[344009984,1733191838702,-13783.63025479,7.7e-05,2]
[344009986,1733191838717,-253.0,7.7e-05,2]
[344010086,1733191840633,-261.16149099,7.7e-05,2]
[344010087,1733191840645,-7951.87371214,7.7e-05,2]
[344010088,1733191840657,-678.73452575,7.7e-05,2]
[344010089,1733191840670,-321.63682,7.7e-05,2]
[344010090,1733191840683,-400.98358494,7.7e-05,2]
[344010105,1733191843480,-7927.20986323,7.7e-05,2]
[344010106,1733191843495,-39889.07096921,7.7e-05,2]
[344010107,1733191843507,-130214.0228878,7.7e-05,2]
[344010109,1733191843520,-2108.52666371,7.7e-05,2]
[344010110,1733191843720,-277.589149,7.7e-05,2]
[344010111,1733191843732,-4554.75452567,7.7e-05,2]
[344010112,1733191843745,-26497.19917211,7.7e-05,2]
[344010113,1733191843756,-44672.47109117,7.7e-05,2]
[344010114,1733191843768,-36427.6310461,7.7e-05,2]
[344010115,1733191843781,-36185.12170741,7.7e-05,2]
[344010116,1733191843794,-3418.02150654,7.7e-05,2]
[344010117,1733191843805,-5943.31739567,7.7e-05,2]
[344010118,1733191843816,-10560.22108733,7.7e-05,2]
[344010119,1733191843828,-5255.61094379,7.7e-05,2]
[344010120,1733191843839,-10514.77200001,7.7e-05,2]
[344010121,1733191843851,-2514.2320149,7.7e-05,2]
[344010122,1733191843862,-6090.85779042,7.7e-05,2]
[344010267,1733191847070,-4183.47875315,7.7e-05,2]
[344010268,1733191847217,-492.08,7.7e-05,2]
[344010269,1733191847228,-3366.68074226,7.7e-05,2]
[344010270,1733191995690,5616.01,7.16e-05,2]
[344010272,1733192439491,250.0,7.076e-05,2]
[344010274,1733192592206,160.32,7.018e-05,2]
[344010354,1733193033635,-159.98,7.226e-05,2]
[344010355,1733193033646,-428.37436484,7.387e-05,2]
[344010362,1733193038514,-1022.19576384,7.387e-05,2]
[344010363,1733193038525,-1033.42987132,7.387e-05,2]
[344010364,1733193038534,-2728.57012868,7.476e-05,2]
[344010365,1733193038679,-4279.73345591,7.476e-05,2]
[344010366,1733193038690,-579.82337301,7.476e-05,2]
[344010367,1733193038701,-2861.8330424,7.476e-05,2]
[344010368,1733193038711,-362.9,7.476e-05,2]
[344010369,1733193038720,-1302.0,7.5e-05,2]
[344010370,1733193038730,-863.576,7.669e-05,2]
[344010371,1733193038739,-175.64912573,7.669e-05,2]
[344010372,1733193038748,-150.0,7.669e-05,2]
[344010373,1733193038757,-6890.04043187,7.67e-05,2]
[344010374,1733193038769,-28649.64035784,7.67e-05,2]
[344010375,1733193038780,-7746.36312,7.67e-05,2]
[344010376,1733193038791,-10833.60253,7.67e-05,2]
[344010377,1733193038802,-1768.6869135,7.67e-05,2]
[344010382,1733193040508,-1293.80875656,7.67e-05,2]
[344010384,1733193040691,-590.01022068,7.67e-05,2]
[344010385,1733193040703,-926.9075529,7.67e-05,2]
[344010386,1733193040712,-703.35908067,7.671e-05,2]
[344010387,1733193040726,-3485.01999615,7.671e-05,2]
[344010388,1733193040737,-19605.04250603,7.671e-05,2]
[344010389,1733193040749,-958.41,7.671e-05,2]
[344010390,1733193040760,-453.701,7.671e-05,2]
[344010391,1733193040772,-1143.34,7.671e-05,2]
[344010392,1733193040783,-710.69999997,7.671e-05,2]
[344010470,1733193044708,-270.42741718,7.671e-05,2]
[344010472,1733193044719,-372.04475441,7.673e-05,2]
[344010474,1733193044732,-500.0,7.673e-05,2]
[344010476,1733193044742,-389.61784249,7.673e-05,2]
[344010478,1733193044752,-159.77596334,7.673e-05,2]
[344010480,1733193044763,-203.50819277,7.673e-05,2]
[344010482,1733193044774,-185.86210675,7.673e-05,2]
[344010484,1733193044785,-443.66,7.68e-05,2]
[344010486,1733193044796,-200.0,7.69e-05,2]
[344010488,1733193044806,-79295.36019099,7.69e-05,2]
[344010490,1733193044819,-3565.0,7.69e-05,2]
[344010493,1733193044831,-8279.28854743,7.69e-05,2]
[344010495,1733193044843,-4853.91163516,7.69e-05,2]
[344010497,1733193044857,-327307.37039768,7.69e-05,2]
[344010499,1733193044867,-200.0,7.696e-05,2]
[344010501,1733193044878,-150.0,7.698e-05,2]
[344010503,1733193044888,-150.0,7.698e-05,2]
[344010505,1733193044898,-150.0,7.698e-05,2]
[344010507,1733193044909,-150.0,7.698e-05,2]
[344010509,1733193044919,-150.0,7.698e-05,2]
[344010511,1733193044929,-150.0,7.698e-05,2]
[344010513,1733193044939,-150.0,7.698e-05,2]
[344010516,1733193044949,-150.0,7.698e-05,2]
[344010518,1733193044959,-150.0,7.698e-05,2]
[344010520,1733193044970,-150.0,7.698e-05,2]
[344010522,1733193044981,-150.0,7.698e-05,2]
[344010524,1733193044992,-150.0,7.698e-05,2]
[344010526,1733193045002,-150.0,7.698e-05,2]
[344010528,1733193045012,-150.0,7.698e-05,2]
[344010530,1733193045023,-150.0,7.698e-05,2]
[344010532,1733193045033,-150.0,7.698e-05,2]
[344010534,1733193045043,-762.0,7.699e-05,2]
[344010536,1733193045055,-1932.97,7.699e-05,2]
[344010538,1733193045064,-42050.73157841,7.699e-05,2]
[344010544,1733193045112,-9226.68658161,7.699e-05,2]
[344010547,1733193045126,-1047.74401446,7.699e-05,2]
[344010549,1733193045138,-72913.05644649,7.699e-05,2]
[344010707,1733193046783,-602.1,7.697e-05,2]
[344010709,1733193046795,-30.499,7.697e-05,2]
[344010711,1733193046804,-1246.50946,7.699e-05,2]
[344010713,1733193046815,-7293.79483229,7.699e-05,2]
[344010716,1733193046827,-8949.52446953,7.699e-05,2]
[344010718,1733193046836,-19411.08338799,7.699e-05,2]
[344010720,1733193046846,-200.0,7.7e-05,2]
[344010722,1733193046855,-9498.16605992,7.7e-05,2]
[344010724,1733193046866,-937816.5960448,7.7e-05,2]
[344010878,1733193327452,981.72,7.09e-05,2]
[344010880,1733193647098,250.0,7.051e-05,2]
[344010881,1733193773190,290.32,7.008e-05,2]
[344010882,1733193778976,170.23,5.592e-05,2]
[344010883,1733193826512,250.0,7.018e-05,2]
[344010884,1733193936389,23900.0,7.042e-05,2]
[344010892,1733194122671,3269.87,7.122e-05,2]
[344010893,1733194133354,3251.0,7.105e-05,2]
[344010913,1733194232043,-7335.24362567,7.3e-05,5]
[344010914,1733194232053,-681.91915745,7.315e-05,2]
[344010915,1733194232063,-244.55,7.315e-05,2]
[344010916,1733194232073,-609.7591,7.6e-05,2]
[344010917,1733194232083,-868.12,7.6e-05,2]
[344010918,1733194232092,-435.18,7.6e-05,2]
[344010919,1733194232102,-177.6742,7.6e-05,2]
[344010920,1733194232112,-571.0454,7.6e-05,2]
[344010921,1733194232122,-159.85838619,7.673e-05,2]
[344010922,1733194232132,-505.34651039,7.673e-05,2]
[344010923,1733194232141,-507.52443515,7.673e-05,2]
[344010924,1733194232151,-4844.34616149,7.688e-05,4]
[344010925,1733194232160,-150.0,7.698e-05,2]
[344010926,1733194232170,-150.0,7.698e-05,2]
[344010927,1733194232179,-150.0,7.698e-05,2]
[344010928,1733194232188,-150.0,7.698e-05,2]
[344010929,1733194232198,-150.0,7.698e-05,2]
[344010930,1733194232210,-150.0,7.698e-05,2]
[344010931,1733194232219,-150.0,7.698e-05,2]
[344010932,1733194232229,-150.0,7.698e-05,2]
[344010933,1733194232239,-150.0,7.698e-05,2]
[344010934,1733194232248,-150.0,7.698e-05,2]
[344010935,1733194232258,-150.0,7.698e-05,2]
[344010936,1733194232267,-150.0,7.698e-05,2]
[344010937,1733194232277,-756.71,7.699e-05,2]
[344010938,1733194232286,-947.06,7.699e-05,2]
[344010939,1733194232296,-926.21,7.699e-05,2]
[344010940,1733194232305,-47419.23680068,7.7e-05,2]
[344010955,1733194237772,-654.06454835,7.546e-05,2]
[344010956,1733194238050,-913.24616108,7.546e-05,2]
[344010957,1733194238060,-1535.77983749,7.7e-05,2]
[344010958,1733194238071,-4560.91412715,7.7e-05,2]
[344010961,1733194239780,-1353.8,7.7e-05,2]
[344010963,1733194239794,-11553.1919293,7.7e-05,2]
[344010965,1733194239806,-1704.15000005,7.7e-05,2]
[344010966,1733194240123,-37178.61493224,7.7e-05,2]
[344010967,1733194240135,-644.70220204,7.7e-05,2]
[344010971,1733194242886,-2688.4955308,7.7e-05,2]
[344010972,1733194242897,-2057.65305963,7.7e-05,2]
[344010973,1733194242909,-8127.0,7.7e-05,2]
[344010976,1733194243140,-3030.31520484,7.7e-05,2]
[344010978,1733194243151,-5062.95217872,7.7e-05,2]
[344010980,1733194243163,-2927.2130135,7.7e-05,2]
[344010983,1733194243174,-2364.79060792,7.7e-05,2]
[344011070,1733194245763,-12535.78266282,7.7e-05,2]
[344011073,1733194245775,-2703.949432,7.7e-05,2]
[344011078,1733194246060,-2709.285,7.7e-05,2]
[344011081,1733194246072,-678.4036491,7.7e-05,2]
[344011231,1733194454022,250.0,7.139e-05,2]
[344011232,1733194542193,680.96,7.06e-05,2]
[344011235,1733194587055,4746.67,7.117e-05,2]
[344011236,1733194602399,584.59,7.108e-05,2]
[344011237,1733194721654,150.0,7.698e-05,120]
[344011238,1733194722794,150.0,7.698e-05,120]
[344011239,1733194723352,150.0,7.698e-05,120]
[344011240,1733194723521,150.0,7.698e-05,120]
[344011241,1733194810166,500.0,7.021e-05,2]
[344011242,1733195003501,250.0,7.046e-05,2]
[344011244,1733195049832,250.0,6.97e-05,2]
[344011246,1733195089094,195.64,6.97e-05,2]
[344011264,1733195432514,-171.1,7.25e-05,2]
[344011265,1733195432525,-420.2193877,7.25e-05,2]
[344011266,1733195432535,-1030.59659662,7.25e-05,2]
[344011267,1733195432545,-1030.59659661,7.286e-05,2]
[344011269,1733195432554,-520.7427867,7.321e-05,2]
[344011271,1733195432563,-1030.59659661,7.321e-05,2]
[344011273,1733195432572,-520.74278669,7.391e-05,2]
[344011275,1733195432582,-150.0,7.631e-05,2]
[344011277,1733195432591,-300.0,7.631e-05,2]
[344011279,1733195432600,-2003.0,7.632e-05,2]
[344011281,1733195432610,-151.575,7.632e-05,2]
[344011282,1733195432619,-563.0,7.632e-05,2]
[344011284,1733195432628,-1893.0,7.632e-05,2]
[344011286,1733195432638,-1252.0,7.632e-05,2]
[344011288,1733195432647,-817.0,7.632e-05,2]
[344011290,1733195432658,-3760.0,7.632e-05,2]
[344011292,1733195432668,-535.0,7.632e-05,2]
[344011295,1733195432681,-975.0,7.632e-05,2]
[344011296,1733195432690,-3528.0,7.632e-05,2]
[344011298,1733195432700,-1097.0,7.635e-05,2]
[344011300,1733195432710,-276.918,7.635e-05,2]
[344011303,1733195432721,-1166.0,7.635e-05,2]
[344011305,1733195432731,-6090.873,7.635e-05,2]
[344011306,1733195432740,-13709.0,7.635e-05,2]
[344011309,1733195432750,-6768.6869125,7.67e-05,2]
[344011310,1733195432759,-150.53,7.67e-05,2]
[344011312,1733195432769,-150.0,7.67e-05,2]
[344011314,1733195432779,-300.0,7.67e-05,2]
[344011316,1733195432788,-150.0,7.67e-05,2]
[344011318,1733195432797,-435.02,7.67e-05,2]
[344011320,1733195432807,-150.0,7.67e-05,2]
[344011322,1733195432816,-150.0,7.67e-05,2]
[344011325,1733195432825,-364.03,7.67e-05,2]
[344011326,1733195432835,-150.0,7.67e-05,2]
[344011328,1733195432845,-364.03,7.67e-05,2]
[344011331,1733195432855,-150.0,7.67e-05,2]
[344011333,1733195432864,-435.02,7.67e-05,2]
[344011335,1733195432875,-150.0,7.67e-05,2]
[344011337,1733195432886,-414.68,7.67e-05,2]
[344011339,1733195432896,-158.58881817,7.673e-05,2]
[344011340,1733195432905,-500.45175042,7.673e-05,2]
[344011342,1733195432914,-435.02,7.68e-05,2]
[344011344,1733195432926,-150.0,7.68e-05,2]
[344011347,1733195432936,-364.03,7.68e-05,2]
[344011349,1733195432946,-150.0,7.68e-05,2]
[344011351,1733195432957,-150.0,7.698e-05,2]
[344011353,1733195432967,-150.0,7.698e-05,2]
[344011355,1733195432977,-150.0,7.698e-05,2]
[344011357,1733195432986,-150.0,7.698e-05,2]
[344011359,1733195432996,-150.0,7.698e-05,2]
[344011361,1733195433005,-150.0,7.698e-05,2]
[344011363,1733195433015,-150.0,7.698e-05,2]
[344011365,1733195433025,-150.0,7.698e-05,2]
[344011367,1733195433035,-150.0,7.698e-05,2]
[344011369,1733195433045,-150.0,7.698e-05,2]
[344011371,1733195433055,-150.0,7.698e-05,2]
[344011373,1733195433065,-150.0,7.698e-05,2]
[344011375,1733195433075,-184.8166313,7.699e-05,2]
[344011377,1733195433085,-757.648,7.699e-05,2]
[344011379,1733195433096,-50241.33574321,7.699e-05,2]
[344011381,1733195433105,-1894.37,7.699e-05,2]
[344011383,1733195433115,-756.94,7.699e-05,2]
[344011385,1733195433125,-12961.80332482,7.7e-05,2]
[344011387,1733195433138,-4031.88962219,7.7e-05,2]
[344011411,1733195433545,-10062.61549847,7.7e-05,2]
[344011412,1733195433558,-382.61625403,7.7e-05,2]
[344011413,1733195433570,-560.249985,7.7e-05,2]
[344011414,1733195433581,-6700.70082519,7.7e-05,2]
[344011417,1733195438064,-534.4333347,7.7e-05,2]
[344011418,1733195438076,-2236.58754856,7.7e-05,2]
[344011419,1733195438088,-2231.45245371,7.7e-05,2]
[344011420,1733195438100,-1562217.74472657,7.7e-05,2]
[344011421,1733195438412,-1262.324028,7.7e-05,2]
[344011426,1733195439908,-1920.8,7.7e-05,2]
[344011430,1733195440574,-690.30094569,7.7e-05,2]
[344011431,1733195440586,-8867.67463458,7.7e-05,2]
[344011432,1733195440598,-404.10369369,7.7e-05,2]
[344011451,1733195443509,-981.2699976,7.7e-05,2]
[344011454,1733195443520,-1128.66166438,7.7e-05,2]
[344011464,1733195443603,-8280.29415686,7.7e-05,2]
[344011466,1733195443615,-4504.83613039,7.7e-05,2]
[344011468,1733195443626,-16969.54342202,7.7e-05,2]
[344011470,1733195443637,-3216.42142526,7.7e-05,2]
[344011472,1733195443648,-95944.0,7.7e-05,2]
[344011475,1733195443659,-8797.41376219,7.7e-05,2]
[344011477,1733195443670,-4543.96970553,7.7e-05,2]
[344011479,1733195443684,-7350.77070102,7.7e-05,2]
[344011497,1733195443898,-19688.18108734,7.7e-05,2]
[344011511,1733195446132,-1351.07999,7.7e-05,2]
[344011512,1733195446144,-4796.71866976,7.7e-05,2]
[344011513,1733195446156,-1357.750005,7.7e-05,2]
[344011514,1733195446168,-2689.04848237,7.7e-05,2]
[344011515,1733195474191,200.0,7e-05,2]
[344011516,1733195477185,500.0,7.1e-05,2]
[344011518,1733195639449,226.39,5.586e-05,2]
[344011519,1733195648782,250.0,7.079e-05,2]
[344011520,1733195687127,232.25,6.973e-05,2]
[344011522,1733195724452,200.0,6.956e-05,2]
[344011523,1733195781081,3000.0,7e-05,2]
[344011524,1733195841340,19696.17,6.954e-05,2]
[344011525,1733195937804,250.69,6.98e-05,2]
[344011533,1733196331774,171.1,6.982e-05,2]
[344011536,1733196368070,897.13673673,7e-05,2]
[344011537,1733196384071,250.0,7.043e-05,2]
[344011541,1733196474368,5071.08533699,0.00022,120]
[344011849,1733196632140,-6013.34502162,7.2e-05,2]
[344011850,1733196632151,-373.35395848,7.2e-05,2]
[344011851,1733196632160,-76.89461,7.2e-05,2]
[344011852,1733196632332,-2296.01252521,7.2e-05,2]
[344012140,1733196638408,-1483.09286479,7.2e-05,2]
[344012141,1733196638418,-159.98,7.316e-05,2]
[344012142,1733196638428,-913.24616108,7.546e-05,2]
[344012143,1733196638438,-300.0,7.599e-05,2]
[344012144,1733196638447,-1531.3,7.6e-05,2]
[344012145,1733196638457,-2500.0,7.6e-05,2]
[344012146,1733196638467,-150.0,7.689e-05,2]
[344012147,1733196638476,-92468.15889104,7.69e-05,2]
[344012153,1733196640145,-13608.22478391,7.69e-05,2]
[344012154,1733196640305,-1660.53998297,7.69e-05,2]
[344012155,1733196640360,-2274.86670265,7.69e-05,2]
[344012161,1733196643316,-4125.07870593,7.69e-05,2]
[344012162,1733196643330,-4323.88847856,7.69e-05,2]
[344012163,1733196643496,-17196.59731183,7.69e-05,2]
[344012164,1733196643508,-697.88000025,7.69e-05,2]
[344012244,1733196646064,-3285.6,7.69e-05,2]
[344012245,1733196646196,-94123.02084758,7.69e-05,2]
[344012246,1733196646377,-4495.96593213,7.69e-05,2]
[344012248,1733196646388,-4239.43994,7.69e-05,2]
[344012250,1733196646400,-1361.715655,7.69e-05,2]
[344012275,1733197064636,250.0,7.107e-05,2]
[344012276,1733197067233,156.51,7.107e-05,2]
[344012278,1733197071563,210.06,7.107e-05,2]
[344012283,1733197104979,322.34,7.059e-05,2]
[344012284,1733197131535,16769.85,7.047e-05,2]
[344012285,1733197235159,300.0,7.016e-05,2]
[344012308,1733197694789,250.0,6.992e-05,2]
[344012309,1733197728183,185.8,6.996e-05,2]
[344012330,1733197832592,-158.0,7.482e-05,2]
[344012331,1733197832602,-156.0,7.49e-05,2]
[344012332,1733197832615,-166.32877421,7.507e-05,2]
[344012333,1733197832635,-69.67122579,7.6e-05,2]
[344012334,1733197832658,-2430.32877421,7.6e-05,2]
[344012335,1733197832675,-150.0,7.671e-05,2]
[344012336,1733197832688,-500.0,7.671e-05,2]
[344012337,1733197832699,-150.0,7.689e-05,2]
[344012338,1733197832712,-68352.37119661,7.69e-05,2]
[344012341,1733197834061,-12129.20714421,7.69e-05,2]
[344012342,1733197834074,-766.71121484,7.69e-05,2]
[344012353,1733197839005,-2198.10361017,7.69e-05,2]
[344012354,1733197839015,-208.12994151,7.69e-05,2]
[344012355,1733197839028,-26.97005849,7.69e-05,2]
[344012356,1733197839038,-150.0,7.698e-05,2]
[344012357,1733197839049,-91.31049554,7.698e-05,2]
[344012358,1733197839061,-58.68950446,7.698e-05,2]
[344012359,1733197839072,-150.0,7.698e-05,2]
[344012360,1733197839081,-150.0,7.698e-05,2]
[344012361,1733197839091,-150.0,7.698e-05,2]
[344012363,1733197839101,-150.0,7.698e-05,2]
[344012364,1733197839111,-150.0,7.698e-05,2]
[344012365,1733197839123,-150.0,7.698e-05,2]
[344012366,1733197839134,-150.0,7.698e-05,2]
[344012367,1733197839145,-150.0,7.698e-05,2]
[344012368,1733197839155,-150.0,7.698e-05,2]
[344012369,1733197839165,-150.0,7.698e-05,2]
[344012370,1733197839175,-150.0,7.698e-05,2]
[344012371,1733197839184,-150.0,7.698e-05,2]
[344012372,1733197839194,-2230.68653351,7.699e-05,2]
[344012379,1733197840734,-2769.31346649,7.699e-05,2]
[344012380,1733197840744,-5000.0,7.699e-05,2]
[344012381,1733197840754,-9985.41540599,7.699e-05,2]
[344012382,1733197840767,-571.27626797,7.699e-05,2]
[344012390,1733197843573,-2188.8950826,7.699e-05,2]
[344012391,1733197843585,-6173.54915173,7.699e-05,2]
[344012392,1733197843597,-3554.71478178,7.699e-05,2]
[344012393,1733197843609,-2336.1764088,7.699e-05,2]
[344012394,1733197843621,-652.91154037,7.699e-05,2]
[344012395,1733197843635,-22126.38811154,7.699e-05,2]
[344012396,1733197843646,-3272.83709135,7.699e-05,2]
[344012397,1733197843658,-1857.86810994,7.699e-05,2]
[344012403,1733197846512,-1025.30779519,7.699e-05,2]
[344012404,1733197846524,-555.17509853,7.699e-05,2]
[344012405,1733197846817,-260.5501795,7.699e-05,2]
[344012406,1733197846828,-41275.98,7.699e-05,2]
[344012407,1733197846839,-297.575,7.699e-05,2]
[344012408,1733197846850,-1371.783865,7.699e-05,2]
[344012409,1733197846861,-415.49997,7.699e-05,2]
[344012410,1733197846872,-5985.2483897,7.699e-05,2]
[344012411,1733197846883,-2758.3,7.699e-05,2]
[344012415,1733198204150,216.3,6.944e-05,2]
[344012416,1733198468391,2936.0,0.00023,120]
[344012417,1733198558190,193.11,6.971e-05,2]
[344012422,1733198672731,4340.82,6.979e-05,2]
[344012423,1733198697463,4396.27,7e-05,3]
[344012424,1733198760876,974.03,0.00023,120]
[344012425,1733198765525,250.0,6.955e-05,2]
[344012426,1733198767797,974.03,0.00023,120]
[344012427,1733198773893,974.03,0.00023,120]
[344012428,1733198781739,974.03,0.00023,120]
[344012429,1733198788337,974.03,0.00023,120]
[344012430,1733198794493,974.03,0.00023,120]
[344012431,1733198810349,974.03,0.00023,120]
[344012432,1733198817155,1954.15,0.00023,120]
[344012434,1733198853236,974.03,0.00023,120]
[344012435,1733198859531,974.03,0.00023,120]
[344012436,1733198865254,974.03,0.00023,120]
[344012437,1733198870714,974.03,0.00023,120]
[344012438,1733198876878,974.03,0.00023,120]
[344012439,1733198882767,974.03,0.00023,120]
[344012440,1733198890284,974.03,0.00023,120]
[344012456,1733199032301,-438.5687,7.528e-05,2]
[344012457,1733199032311,-970.68359469,7.6e-05,2]
[344012458,1733199033402,-1529.31640531,7.6e-05,2]
[344012459,1733199033412,-1097.0,7.628e-05,2]
[344012460,1733199033422,-5962.0,7.628e-05,2]
[344012461,1733199033431,-273.093,7.628e-05,2]
[344012462,1733199033441,-1166.0,7.628e-05,2]
[344012463,1733199033452,-2927.4906169,7.628e-05,2]
[344012464,1733199033560,-4838.14162097,7.628e-05,2]
[344012474,1733199038242,-5943.36776213,7.628e-05,2]
[344012475,1733199038252,-159.89519818,7.673e-05,2]
[344012476,1733199038261,-150.0,7.689e-05,2]
[344012477,1733199038270,-196.062254,7.69e-05,2]
[344012478,1733199038279,-2312.43604699,7.69e-05,2]
[344012479,1733199038454,-168.26889451,7.69e-05,2]
[344012480,1733199038464,-196.062254,7.695e-05,2]
[344012481,1733199038474,-196.062254,7.695e-05,2]
[344012482,1733199038484,-2199.4304001,7.695e-05,2]
[344012483,1733199038494,-528.79717129,7.695e-05,2]
[344012484,1733199038513,-1389.35868741,7.695e-05,2]
[344012485,1733199038523,-150.0,7.698e-05,2]
[344012486,1733199038533,-150.0,7.698e-05,2]
[344012487,1733199038542,-150.0,7.698e-05,2]
[344012488,1733199038552,-150.0,7.698e-05,2]
[344012489,1733199038562,-150.0,7.698e-05,2]
[344012490,1733199038573,-150.0,7.698e-05,2]
[344012491,1733199038583,-150.0,7.698e-05,2]
[344012492,1733199038593,-150.0,7.698e-05,2]
[344012493,1733199038603,-150.0,7.698e-05,2]
[344012494,1733199038613,-150.0,7.698e-05,2]
[344012495,1733199038623,-150.0,7.698e-05,2]
[344012496,1733199038633,-150.0,7.698e-05,2]
[344012497,1733199038643,-150.0,7.698e-05,2]
[344012498,1733199038652,-150.0,7.698e-05,2]
[344012499,1733199038662,-150.0,7.698e-05,2]
[344012500,1733199038671,-150.0,7.698e-05,2]
[344012501,1733199038680,-785.98,7.698e-05,2]
[344012502,1733199038690,-184.26923366,7.699e-05,2]
[344012505,1733199040447,-405.5182505,7.699e-05,2]
[344012506,1733199040459,-896.5786005,7.699e-05,2]
[344012510,1733199043182,-449.94453054,7.699e-05,2]
[344012511,1733199043342,-6787.85476104,7.699e-05,2]
[344012512,1733199043354,-2940.60729019,7.699e-05,2]
[344012513,1733199043363,-150.0,7.699e-05,2]
[344012514,1733199043373,-150.0,7.699e-05,2]
[344012515,1733199043382,-2495.66,7.699e-05,2]
[344012516,1733199043391,-671.24579518,7.699e-05,2]
[344012517,1733199043403,-1144.19420482,7.699e-05,2]
[344012518,1733199043412,-725.4,7.699e-05,2]
[344012519,1733199043421,-48.92606017,7.7e-05,2]
[344012520,1733199043432,-101.07393983,7.7e-05,2]
[344012521,1733199043442,-150.0,7.7e-05,2]
[344012522,1733199043451,-150.0,7.7e-05,2]
[344012523,1733199043460,-150.0,7.7e-05,2]
[344012524,1733199043470,-204.129,7.7e-05,2]
[344012525,1733199043481,-194.518,7.7e-05,2]
[344012526,1733199043490,-482.58438119,7.7e-05,2]
[344012527,1733199043588,-83.41561881,7.7e-05,2]
[344012528,1733199043597,-1261.0,7.7e-05,2]
[344012529,1733199043607,-2003.0,7.7e-05,2]
[344012531,1733199043616,-150.0,7.7e-05,2]
[344012532,1733199043625,-630.0,7.7e-05,2]
[344012533,1733199043635,-563.0,7.7e-05,2]
[344012534,1733199043644,-50.94833471,7.7e-05,2]
[344012535,1733199043655,-1842.05166529,7.7e-05,2]
[344012536,1733199043664,-77.14115328,7.7e-05,2]
[344012537,1733199043675,-738.85884672,7.7e-05,2]
[344012538,1733199043685,-1252.0,7.7e-05,2]
[344012539,1733199043694,-1572.75891113,7.7e-05,2]
[344012540,1733199043713,-2187.24108887,7.7e-05,2]
[344012541,1733199043722,-535.0,7.7e-05,2]
[344012542,1733199043731,-975.0,7.7e-05,2]
[344012543,1733199043740,-3528.0,7.7e-05,2]
[344012544,1733199043749,-21027.81983162,7.7e-05,2]
[344012546,1733199043760,-2048.75061202,7.7e-05,2]
[344012557,1733199048055,-4814.46809525,7.7e-05,2]
[344012558,1733199048085,-8745.68622476,7.7e-05,2]
[344012559,1733199048127,-2731.21498,7.7e-05,2]
[344012562,1733199265187,250.0,7.106e-05,2]
[344012565,1733199366176,250.0,7.094e-05,2]
[344012566,1733199380148,974.03,0.00023,120]
[344012567,1733199386014,974.03,0.00023,120]
[344012568,1733199392161,974.03,0.00023,120]
[344012569,1733199421094,974.03,0.00023,120]